bitfinex-derivatives/quotes_SOLF0:USTF0_20240905
["timestamp","ask_amount","ask_price","bid_price","bid_amount"]
[1725563687743,3.89808933,130.07,130.05,0.05281532]
[1725563688142,0.05348933,130.07,130.06,3.8449]
[1725563694745,0.05348933,130.07,130.05,0.05281532]
[1725563694947,3.81864055,130.06,130.05,0.05281532]
[1725563696149,0.05348933,130.07,130.05,0.05281532]
[1725563696544,0.05348933,130.07,130.05,3.89791532]
[1725563697053,0.05348933,130.07,130.06,3.8449]
[1725563697249,0.05348933,130.07,130.05,0.05281532]
[1725563697849,0.05348933,130.07,130.06,3.8449]
[1725563698243,0.05348933,130.07,130.05,0.05281532]
[1725563698448,10.68348933,130.07,130.05,0.05281532]
[1725563698651,0.05348933,130.07,130.05,0.05281532]
[1725563700353,3.8449,130.06,130.05,0.05281532]
[1725563701147,3.89828933,130.07,130.05,0.05281532]
[1725563701347,0.05348933,130.07,130.05,0.05281532]
[1725563702857,0.05348933,130.07,130.05,3.89771532]
[1725563703750,0.05348933,130.07,130.06,3.8449]
[1725563704854,0.05348933,130.07,130.05,5.20911532]
[1725563705555,10.68348933,130.07,130.05,0.05281532]
[1725563705952,3.8459,130.03,129.99,1.3609]
[1725563706147,1.4026,130.09,130.01,3.8464]
[1725563706148,3.83701161,130.04,130.01,3.8464]
[1725563706353,10.63,130.05,130.01,3.8464]
[1725563706554,3.8456,130.04,130.01,3.8464]
[1725563706748,3.8456,130.04,129.99,11.9909]
[1725563706749,3.8456,130.04,130.02,3.8461]
[1725563706950,0.05108637,130.04,130.02,0.05184624]
[1725563707155,0.05108637,130.04,130.03,10.63]
[1725563707355,0.05108637,130.04,130.02,3.89774624]
[1725563708555,0.05108637,130.04,130.02,0.05184624]
[1725563709060,0.05108637,130.04,130.02,3.89784624]
[1725563709551,0.05108637,130.04,130.03,3.8458]
[1725563711856,0.05108637,130.04,130.02,0.05184624]
[1725563712057,10.63,130.03,130.02,0.05184624]
[1725563712565,14.4758,130.03,130.02,0.05184624]
[1725563713365,14.4758,130.03,129.95,14.7486]
[1725563713366,10.63,130.03,129.95,4.1186]
[1725563713661,10.63,130.01,129.97,3.8474]
[1725563713861,18.25785617,130.0,129.97,3.8474]
[1725563714063,14.4768,130.0,129.97,3.8474]
[1725563714363,14.5262911,130.0,129.97,3.89749638]
[1725563714561,18.40856028,130.0,129.97,3.89749638]
[1725563714860,10.63,129.98,129.97,0.05009638]
[1725563715463,14.4773,129.98,129.97,0.05009638]
[1725563715661,10.63,129.98,129.97,0.05009638]
[1725563715859,14.4773,129.98,129.97,0.05009638]
[1725563716062,26.63,129.98,129.92,3.8489]
[1725563716357,26.63,129.98,129.89,2.8567]
[1725563716358,3.8478,129.97,129.91,3.8493]
[1725563716865,3.8478,129.97,129.9,26.63]
[1725563716866,26.63,129.98,129.9,26.63]
[1725563717157,26.63,129.98,129.89,2.8567]
[1725563717158,0.05033496,129.95,129.92,0.04577725]
[1725563717363,26.63,129.94,129.92,0.04577725]
[1725563717564,26.63,129.94,129.87,1.4242]
[1725563717762,3.88226918,130.0,129.87,1.4242]
[1725563717969,3.8484,129.95,129.91,3.8491]
[1725563718162,3.8484,129.95,129.89,1.3992]
[1725563718463,3.84277721,129.96,129.89,1.3992]
[1725563718464,0.0531693,129.93,129.89,1.3992]
[1725563719067,0.0531693,129.93,129.9,3.8496]
[1725563719363,0.0531693,129.93,129.89,28.0292]
[1725563719561,0.0531693,129.93,129.89,5.249]
[1725563719562,3.9020693,129.93,129.89,5.249]
[1725563719867,26.6831693,129.93,129.88,1.388]
[1725563720067,3.8513,129.85,129.81,3.852]
[1725563720364,26.63,129.89,129.79,29.3453]
[1725563720365,0.05576383,129.84,129.79,29.3453]
[1725563720559,0.0570314,129.83,129.79,29.3453]
[1725563720867,0.0570314,129.83,129.82,3.8518]
[1725563721056,0.0570314,129.83,129.79,29.3453]
[1725563721258,0.0570314,129.83,129.79,2.7153]
[1725563722460,0.0570314,129.83,129.79,1.3273]
[1725563722655,26.6870314,129.83,129.77,1.4061]
[1725563722858,26.63,129.81,129.77,1.4061]
[1725563723056,0.05176857,129.8,129.77,1.4061]
[1725563723258,0.05176857,129.8,129.71,26.63]
[1725563723457,0.04989844,129.77,129.76,3.8537]
[1725563723658,0.05898302,129.78,129.73,26.63]
[1725563724060,0.05898302,129.78,129.77,3.8535]
[1725563724463,3.8514,129.84,129.77,26.63]
[1725563724766,26.63,129.84,129.74,3.77639116]
[1725563725061,26.63,129.84,129.75,28.0245]
[1725563725262,3.8518,129.83,129.78,3.8532]
[1725563725660,0.05149452,129.82,129.79,3.9108428]
[1725563726062,3.90359452,129.82,129.79,0.0579428]
[1725563726364,0.05149452,129.82,129.79,0.0579428]
[1725563728070,3.90369452,129.82,129.79,0.0579428]
[1725563728460,26.68149452,129.82,129.79,0.0579428]
[1725563729059,30.53359452,129.82,129.79,0.0579428]
[1725563729562,3.8523,129.81,129.79,0.0579428]
[1725563729764,0.05149452,129.82,129.79,0.0579428]
[1725563730160,0.05149452,129.82,129.8,3.8526]
[1725563730363,0.05149452,129.82,129.79,0.0579428]
[1725563730563,0.05149452,129.82,129.79,1.4526428]
[1725563730967,0.05149452,129.82,129.79,0.0579428]
[1725563731564,30.4803,129.88,129.79,3.98349332]
[1725563731764,26.63,129.9,129.8,26.63]
[1725563731965,26.63,129.9,129.82,26.63]
[1725563732170,30.4799,129.9,129.83,1.3857]
[1725563732366,26.63,129.9,129.83,2.8251]
[1725563732566,30.51752276,129.9,129.83,2.8251]
[1725563732767,26.68284903,129.88,129.85,0.05163068]
[1725563733170,26.63,129.86,129.78,2.7739]
[1725563733374,26.63,129.84,129.78,2.7739]
[1725563733868,3.8522,129.82,129.78,2.7739]
[1725563734067,3.8522,129.82,129.79,3.8529]
[1725563734368,3.8525,129.81,129.79,0.05058138]
[1725563735171,0.0541276,129.82,129.79,0.05058138]
[1725563735566,3.88752276,129.9,129.79,26.63]
[1725563735767,3.8506,129.87,129.8,26.63]
[1725563736376,26.63,129.87,129.78,1.3246]
[1725563736677,26.63,129.87,129.81,0.05031737]
[1725563736678,0.04923197,129.84,129.81,0.05031737]
[1725563736880,0.04923197,129.84,129.81,3.90241737]
[1725563737372,0.04923197,129.84,129.81,0.05031737]
[1725563737674,26.67923197,129.84,129.81,0.05031737]
[1725563738074,3.852,129.82,129.81,0.05031737]
[1725563739474,3.852,129.82,129.77,3.8534]
[1725563739475,3.8529,129.79,129.76,3.8537]
[1725563739676,34.6429,129.83,129.76,3.8537]
[1725563739873,34.6429,129.83,129.75,2.7143]
[1725563740075,3.8525,129.81,129.77,3.8532]
[1725563740570,0.05780095,129.8,129.78,0.05085714]
[1725563743179,34.765,129.87,129.78,0.05085714]
[1725563743380,33.32,129.87,129.78,33.32]
[1725563743586,33.32,129.87,129.76,34.7082]
[1725563743879,3.8513,129.85,129.81,3.8521]
[1725563744085,33.32,129.87,129.81,3.8521]
[1725563744285,0.04990092,129.85,129.83,0.05486606]
[1725563744481,0.04990092,129.85,129.83,0.05553716]
[1725563744984,3.8516,129.84,129.83,0.05553716]
[1725563745683,33.32,129.85,129.72,33.32]
[1725563745879,33.32,129.82,129.73,1.3769]
[1725563746078,33.32,129.84,129.79,3.8527]
[1725563746382,33.32,129.84,129.73,1.3769]
[1725563746583,0.05496441,129.8,129.77,0.05220555]
[1725563746886,0.05496441,129.8,129.78,3.853]
[1725563747386,0.05496441,129.8,129.79,3.8529]
[1725563748884,3.90892837,129.88,129.78,34.7155]
[1725563749088,37.5549,129.91,129.81,33.32]
[1725563749282,7.68996511,129.9,129.81,33.32]
[1725563749484,3.84016511,129.9,129.81,33.32]
[1725563749683,37.5549,129.91,129.81,33.32]
[1725563749881,0.05904027,129.87,129.85,0.05176967]
[1725563751086,0.05904027,129.87,129.86,3.8508]
[1725563753779,41.2958,129.94,129.85,33.32]
[1725563753982,3.93962144,129.93,129.85,33.32]
[1725563754183,3.93962144,129.93,129.84,1.4239]
[1725563754184,3.93962144,129.93,129.88,3.85]
[1725563754383,7.78852144,129.93,129.84,1.4239]
[1725563754594,3.93962144,129.93,129.85,1.3326]
[1725563754791,3.93962144,129.93,129.9,3.8494]
[1725563754986,3.99070516,129.93,129.9,3.8494]
[1725563755289,3.99070516,129.93,129.88,0.04906997]
[1725563755487,7.83970516,129.93,129.9,3.8496]
[1725563755681,3.99070516,129.93,129.88,0.04906997]
[1725563756486,3.99070516,129.93,129.9,3.8494]
[1725563756687,3.99070516,129.93,129.88,0.04906997]
[1725563757398,0.05108372,129.93,129.88,0.04906997]
[1725563757693,0.05108372,129.93,129.91,3.8491]
[1725563757989,0.05108372,129.93,129.91,3.89908553]
[1725563758288,0.05108372,129.93,129.91,0.04998553]
[1725563758687,0.05108372,129.93,129.92,3.849]
[1725563760097,0.05108372,129.93,129.91,3.89928553]
[1725563760290,0.05108372,129.93,129.91,0.04998553]
[1725563760486,0.05108372,129.93,129.92,3.849]
[1725563762201,0.05108372,129.93,129.91,3.89918553]
[1725563762601,0.05108372,129.93,129.91,0.04998553]
[1725563762897,3.90008372,129.93,129.91,0.04998553]
[1725563763412,0.05108372,129.93,129.91,3.89918553]
[1725563763706,0.05108372,129.93,129.91,0.04998553]
[1725563763906,3.849,129.92,129.91,0.04998553]
[1725563764508,37.169,129.92,129.91,0.04998553]
[1725563766503,33.32,129.92,129.85,1.3326]
[1725563766808,3.85,129.89,129.86,3.8507]
[1725563767005,33.32,129.9,129.85,1.3326]
[1725563767403,0.05591708,129.89,129.86,0.05627889]
[1725563769006,0.05591708,129.89,129.88,3.8502]
[1725563776112,0.05591708,129.89,129.87,3.8504]
[1725563776309,0.05591708,129.89,129.86,0.05627889]
[1725563777013,0.05591708,129.89,129.88,3.8502]
[1725563777509,3.86253592,129.94,129.88,3.8502]
[1725563777809,29.3323,129.98,129.89,26.61]
[1725563778013,29.3323,129.98,129.9,1.4362]
[1725563778210,30.4581,129.96,129.92,3.8488]
[1725563778609,0.0533194,129.95,129.93,0.05185411]
[1725563780117,0.0533194,129.95,129.93,3.90045411]
[1725563782721,0.0533194,129.95,129.93,0.05185411]
[1725563782928,3.9015194,129.95,129.93,0.05185411]
[1725563783919,3.8485,129.94,129.93,0.05185411]
[1725563784116,3.8485,129.94,129.86,26.61]
[1725563784117,26.61,129.94,129.86,2.7268]
[1725563784315,26.61,129.92,129.86,2.7268]
[1725563784512,3.92794683,129.91,129.88,3.8502]
[1725563784718,26.61,129.92,129.88,3.8502]
[1725563785012,26.61,129.92,129.86,2.7268]
[1725563785213,3.8497,129.9,129.86,6.5774]
[1725563785414,3.90705424,129.9,129.88,0.05565203]
[1725563786012,0.05735424,129.9,129.88,0.05565203]
[1725563788422,0.05735424,129.9,129.88,3.90585203]
[1725563791626,0.05735424,129.9,129.89,3.8499]
[1725563791827,0.05735424,129.9,129.88,0.05565203]
[1725563792125,0.05735424,129.9,129.88,3.90565203]
[1725563792424,0.05735424,129.9,129.88,0.05565203]
[1725563793027,0.05735424,129.9,129.89,3.8499]
[1725563794624,0.05735424,129.9,129.88,3.90575203]
[1725563795524,3.90705424,129.9,129.88,3.90575203]
[1725563796637,3.8499,129.89,129.88,0.05565203]
[1725563797928,30.51715424,129.9,129.88,0.05565203]
[1725563799127,3.8499,129.89,129.88,0.05565203]
[1725563800525,30.51715424,129.9,129.88,0.05565203]
[1725563801131,26.66735424,129.9,129.88,0.05565203]
[1725563802229,0.05735424,129.9,129.88,0.05565203]
[1725563804025,3.90725424,129.9,129.88,0.05565203]
[1725563804233,0.05735424,129.9,129.88,0.05565203]
[1725563804622,3.8499,129.89,129.88,0.05565203]
[1725563804820,30.4599,129.89,129.88,0.05565203]
[1725563806424,3.90725424,129.9,129.88,0.05565203]
[1725563806729,0.05735424,129.9,129.88,0.05565203]
[1725563806929,3.8499,129.89,129.88,0.05565203]
[1725563815238,3.90705424,129.9,129.88,3.90585203]
[1725563815443,0.05735424,129.9,129.88,0.05565203]
[1725563817137,0.05735424,129.9,129.89,3.8499]
[1725563820550,0.05735424,129.9,129.88,3.90575203]
[1725563820842,26.61,129.89,129.88,0.05565203]
[1725563821145,26.61,129.89,129.78,41.77777408]
[1725563821346,26.61,129.89,129.79,4.88329182]
[1725563821542,26.61,129.89,129.8,1.54111774]
[1725563821747,26.61,129.89,129.79,3.34310828]
[1725563822045,0.05812877,129.85,129.84,3.8513]
[1725563822247,0.05213369,129.86,129.84,3.8513]
[1725563823348,0.05213369,129.86,129.85,3.8511]
[1725563823945,0.05213369,129.86,129.84,5.2154]
[1725563824545,0.05213369,129.86,129.83,0.05865247]
[1725563824955,26.61,129.85,129.83,0.05865247]
[1725563825744,3.8514,129.84,129.83,0.05865247]
[1725563826149,3.8518,129.83,129.8,3.8525]
[1725563827143,3.90254233,129.83,129.8,3.87270368]
[1725563828647,0.05074233,129.83,129.8,0.02020368]
[1725563829048,0.05074233,129.83,129.8,26.63020368]
[1725563829250,26.61,129.9,129.8,26.61]
[1725563829754,3.8504,129.88,129.85,3.851]
[1725563829952,26.61,129.9,129.82,3.81713069]
[1725563830145,0.05147605,129.87,129.85,0.05343969]
[1725563831553,3.85682422,129.86,129.85,0.05343969]
[1725563832345,7.70762422,129.86,129.85,0.05343969]
[1725563833454,34.31762422,129.86,129.85,0.05343969]
[1725563833651,7.70762422,129.86,129.85,0.05343969]
[1725563835657,34.31762422,129.86,129.85,0.05343969]
[1725563836253,3.8517,129.83,129.81,3.8521]
[1725563836759,3.8525,129.81,129.77,105.56313214]
[1725563836959,26.61,129.83,129.77,105.56313214]
[1725563837156,0.05040308,129.81,129.8,3.8526]
[1725563837754,3.90270308,129.81,129.77,105.56313214]
[1725563837957,0.05040308,129.81,129.77,105.56313214]
[1725563838260,3.8528,129.8,129.77,109.41643214]
[1725563838651,3.8528,129.8,129.77,3.8533]
[1725563839056,3.8529,129.79,129.77,3.8533]
[1725563839563,0.05040308,129.81,129.78,3.8532]
[1725563840054,3.90290308,129.81,129.78,3.8532]
[1725563840259,0.05040308,129.81,129.77,3.8533]
[1725563840452,0.05040308,129.81,129.76,2.8426]
[1725563840760,3.8527,129.8,129.77,3.8534]
[1725563841860,3.8527,129.8,129.78,3.8532]
[1725563842461,3.90280308,129.81,129.78,3.8532]
[1725563844364,3.8527,129.8,129.77,3.8534]
[1725563844562,30.53845985,129.81,129.75,1.4121]
[1725563844763,30.53845985,129.81,129.74,3.8543]
[1725563844764,3.8532,129.78,129.74,3.8543]
[1725563844961,0.05435785,129.77,129.71,4.0774]
[1725563845166,0.05435785,129.77,129.72,30.49422404]
[1725563845563,0.05435785,129.77,129.75,3.854]
[1725563845963,0.05435785,129.77,129.72,30.49422404]
[1725563847866,0.05435785,129.77,129.59,27.79427937]
[1725563847867,26.61,129.73,129.6,11.575]
[1725563848166,0.05535283,129.68,129.62,2.7507]
[1725563848475,26.61,129.69,129.62,6.6085]
[1725563848476,3.91476415,129.66,129.62,6.6085]
[1725563848675,0.05796415,129.66,129.62,2.7507]
[1725563849365,0.05796415,129.66,129.62,6.6085]
[1725563849764,0.05796415,129.66,129.62,2.7507]
[1725563850172,0.05796415,129.66,129.62,29.3607]
[1725563850471,3.88812025,129.81,129.64,26.61]
[1725563850679,3.8543,129.75,129.71,3.8552]
[1725563851370,26.61,129.72,129.62,1.3827]
[1725563851675,0.04959108,129.68,129.66,0.05271007]
[1725563851869,26.61,129.74,129.65,30.39353685]
[1725563852069,33.31,129.76,129.65,37.09353685]
[1725563852264,3.8547,129.73,129.68,3.8561]
[1725563852470,33.31,129.76,129.68,3.8561]
[1725563852871,3.855,129.72,129.71,0.04884777]
[1725563854176,0.05299204,129.73,129.71,0.04884777]
[1725563856078,0.05299204,129.73,129.71,3.90394777]
[1725563856778,0.05299204,129.73,129.72,3.855]
[1725563857077,3.84870377,129.77,129.71,0.04884777]
[1725563857471,3.8542,129.75,129.71,3.90394777]
[1725563857669,3.8542,129.75,129.71,0.04884777]
[1725563857880,0.05758795,129.74,129.71,0.04884777]
[1725563858671,33.31,129.73,129.71,0.04884777]
[1725563859177,3.855,129.72,129.71,0.04884777]
[1725563859479,33.31,129.73,129.71,0.04884777]
[1725563859675,3.8548,129.73,129.71,0.04884777]
[1725563860177,3.91218795,129.74,129.71,0.04884777]
[1725563861175,0.05758795,129.74,129.72,3.855]
[1725563861375,0.05758795,129.74,129.71,0.04884777]
[1725563861879,3.91208795,129.74,129.71,3.90394777]
[1725563862678,3.8548,129.73,129.71,0.04884777]
[1725563863283,3.91218795,129.74,129.71,0.04884777]
[1725563863579,3.91218795,129.74,129.71,3.90404777]
[1725563863976,0.05758795,129.74,129.71,0.04884777]
[1725563864278,0.05758795,129.74,129.72,3.8547]
[1725563865082,0.05758795,129.74,129.73,3.8547]
[1725563867375,0.05758795,129.74,129.72,3.8549]
[1725563867684,0.05758795,129.74,129.71,0.04884777]
[1725563868085,3.91208795,129.74,129.71,3.90404777]
[1725563868485,3.8548,129.73,129.71,0.04884777]
[1725563868686,0.05758795,129.74,129.71,0.04884777]
[1725563869084,3.91208795,129.74,129.71,3.90394777]
[1725563869482,0.05758795,129.74,129.71,0.04884777]
[1725563869679,0.05758795,129.74,129.73,3.8547]
[1725563873299,0.05758795,129.74,129.71,0.04884777]
[1725563873894,0.05758795,129.74,129.73,3.8547]
[1725563880394,7.7012,129.87,129.71,26.68884777]
[1725563880591,26.64,129.83,129.73,26.64]
[1725563880797,26.64,129.83,129.74,1.3685]
[1725563880997,30.4913,129.85,129.76,26.64]
[1725563881190,30.4913,129.85,129.77,3.94133017]
[1725563881396,0.05002171,129.82,129.8,0.04854825]
[1725563881598,0.05002171,129.82,129.81,3.8522]
[1725563884299,3.8504,129.88,129.8,1.3975]
[1725563884905,7.77359163,129.88,129.84,3.8513]
[1725563885108,30.4906,129.87,129.8,1.3975]
[1725563885400,3.92319163,129.88,129.8,1.3975]
[1725563885401,26.64,129.83,129.82,0.05700759]
[1725563886605,26.64,129.83,129.79,3.8527]
[1725563886899,26.64,129.8,129.68,30.49264831]
[1725563887202,26.64,129.77,129.75,3.8541]
[1725563887702,26.69799888,129.77,129.75,0.05577011]
[1725563889409,26.69799888,129.77,129.71,1.3219]
[1725563889702,26.64,129.73,129.69,1.3947]
[1725563889907,26.64,129.73,129.62,103.99727458]
[1725563889908,33.33,129.71,129.66,2.746]
[1725563890498,0.05219088,129.7,129.68,3.856]
[1725563890698,0.05219088,129.7,129.67,0.05750533]
[1725563891001,0.05219088,129.7,129.69,3.8559]
[1725563891599,33.33,129.74,129.66,2.746]
[1725563892002,239.61919163,129.88,129.66,2.746]
[1725563892003,69.73133741,129.85,129.69,33.33]
[1725563892308,33.33,129.8,129.72,33.33]
[1725563892508,37.187782,129.8,129.72,33.33]
[1725563892709,0.05636021,129.77,129.75,0.05750988]
[1725563893304,0.05636021,129.77,129.76,3.8538]
[1725563894905,0.05636021,129.77,129.75,3.91150988]
[1725563899707,3.90996021,129.77,129.75,0.05750988]
[1725563899906,0.05636021,129.77,129.75,0.05750988]
[1725563900913,0.05636021,129.77,129.75,3.91140988]
[1725563901413,0.05636021,129.77,129.75,0.05750988]
[1725563901610,0.05636021,129.77,129.75,3.91160988]
[1725563902517,0.05636021,129.77,129.75,0.05750988]
[1725563903618,0.05636021,129.77,129.75,3.91160988]
[1725563904008,0.05636021,129.77,129.75,0.05750988]
[1725563904516,0.05636021,129.77,129.76,3.8538]
[1725563904710,0.05636021,129.77,129.75,0.05750988]
[1725563905113,0.05636021,129.77,129.76,3.8538]
[1725563908611,0.05636021,129.77,129.75,0.05750988]
[1725563909518,0.05636021,129.77,129.75,3.91160988]
[1725563909918,0.05636021,129.77,129.75,0.05750988]
[1725563910122,0.05636021,129.77,129.76,3.8538]
[1725563913619,0.05636021,129.77,129.75,3.91160988]
[1725563915319,0.05636021,129.77,129.75,0.05750988]
[1725563916825,3.8538,129.76,129.75,0.05750988]
[1725563920831,26.66,129.76,129.68,4.0113]
[1725563921027,1.4075,129.79,129.65,30.45954696]
[1725563921028,26.66,129.74,129.65,30.45954696]
[1725563921229,3.8563,129.68,129.65,3.8569]
[1725563921525,26.66,129.7,129.63,4.112]
[1725563921727,0.05817605,129.68,129.65,3.91121256]
[1725563921924,3.91447605,129.68,129.65,3.91121256]
[1725563922120,3.91447605,129.68,129.65,0.05421256]
[1725563922726,0.05817605,129.68,129.65,3.91111256]
[1725563923333,26.71817605,129.68,129.65,0.05421256]
[1725563923835,30.5168,129.66,129.65,0.05421256]
[1725563925030,26.66,129.66,129.65,0.05421256]
[1725563925229,3.8566,129.67,129.65,0.05421256]
[1725563926334,30.5166,129.67,129.65,0.05421256]
[1725563926534,0.05817605,129.68,129.65,3.91111256]
[1725563926731,0.05817605,129.68,129.65,0.05421256]
[1725563927637,0.05817605,129.68,129.66,3.8568]
[1725563927823,0.05817605,129.68,129.65,0.05421256]
[1725563928626,0.05817605,129.68,129.66,3.8566]
[1725563928832,0.05817605,129.68,129.65,0.05421256]
[1725563929336,0.05817605,129.68,129.66,3.8566]
[1725563929630,0.05817605,129.68,129.67,3.8565]
[1725563931034,3.85232563,129.74,129.66,2.7928]
[1725563931035,3.8548,129.73,129.7,3.8555]
[1725563932138,0.05284044,129.73,129.7,0.04870824]
[1725563932635,3.90764044,129.73,129.7,0.04870824]
[1725563934529,3.90764044,129.73,129.7,3.90420824]
[1725563934732,0.05284044,129.73,129.7,3.90420824]
[1725563935529,3.90754044,129.73,129.7,3.90420824]
[1725563938435,3.8553,129.71,129.7,0.04870824]
[1725563938942,3.8551,129.72,129.7,0.04870824]
[1725563940235,3.8553,129.71,129.7,0.04870824]
[1725563943637,37.1653,129.71,129.7,0.04870824]
[1725563944039,3.8561,129.69,129.66,3.8566]
[1725563944447,33.31,129.71,129.66,3.8566]
[1725563944850,3.8562,129.68,129.66,3.8566]
[1725563945048,3.90735503,129.68,129.66,3.90773061]
[1725563946240,0.05115503,129.68,129.67,3.8565]
[1725563946751,0.05115503,129.68,129.66,0.05113061]
[1725563946945,0.05115503,129.68,129.66,3.90773061]
[1725563947447,3.90745503,129.68,129.66,0.05113061]
[1725563948347,3.8565,129.67,129.66,0.05113061]
[1725563949057,7.6714934,129.67,129.66,0.05113061]
[1725563949255,3.8565,129.67,129.66,0.05113061]
[1725563950152,0.05115503,129.68,129.66,0.05113061]
[1725563950653,3.90735503,129.68,129.66,0.05113061]
[1725563950855,0.05115503,129.68,129.66,0.05113061]
[1725563952063,3.8565,129.67,129.66,0.05113061]
[1725563955061,34.31053703,129.67,129.66,0.05113061]
[1725563955461,30.5265,129.67,129.66,0.05113061]
[1725563955957,26.67,129.67,129.66,0.05113061]
[1725563956157,3.90755503,129.68,129.66,0.05113061]
[1725563956362,0.05115503,129.68,129.67,3.8565]
[1725563957555,3.8549,129.73,129.7,3.8554]
[1725563958355,3.855,129.72,129.69,3.8557]
[1725563958550,3.90692485,129.72,129.69,3.91491262]
[1725563959157,0.05192485,129.72,129.7,3.8555]
[1725563959762,3.90712485,129.72,129.69,3.91491262]
[1725563959962,30.57712485,129.72,129.69,3.91491262]
[1725563960259,30.57712485,129.72,129.7,3.8556]
[1725563960461,26.72192485,129.72,129.7,3.8556]
[1725563961156,0.05192485,129.72,129.71,3.8553]
[1725563964759,0.05192485,129.72,129.7,3.8554]
[1725563965460,0.05192485,129.72,129.69,0.05921262]
[1725563966164,3.8554,129.71,129.69,0.05921262]
[1725563966667,3.8554,129.71,129.69,3.91501262]
[1725563967961,3.90702485,129.72,129.69,3.91501262]
[1725563968467,0.05192485,129.72,129.7,3.8554]
[1725563969564,0.05192485,129.72,129.69,0.05921262]
[1725563969954,0.05192485,129.72,129.71,3.8553]
[1725563971969,3.90692485,129.72,129.7,3.8554]
[1725563972364,0.05192485,129.72,129.7,3.8554]
[1725563972670,26.72192485,129.72,129.69,0.05921262]
[1725563973264,3.8556,129.7,129.69,0.05921262]
[1725563974069,30.5256,129.7,129.69,0.05921262]
[1725563975972,26.67,129.7,129.64,4.1808]
[1725563976167,26.67,129.7,129.64,2.7828]
[1725563976372,26.67,129.68,129.65,3.8569]
[1725563976774,26.72282276,129.68,129.65,3.9151854]
[1725563977367,30.57922276,129.68,129.65,3.9151854]
[1725563979969,3.8565,129.67,129.65,0.0582854]
[1725563981875,26.72282276,129.68,129.65,0.0582854]
[1725563982177,26.67,129.66,129.47,11.5868]
[1725563982368,3.8589,129.59,129.55,3.8598]
[1725563982872,30.61075817,129.61,129.54,2.8156]
[1725563983173,26.71994309,129.59,129.56,0.05283847]
[1725563983375,30.52832203,129.59,129.56,0.05283847]
[1725563983570,26.71994309,129.59,129.56,0.05283847]
[1725563983968,3.8594,129.58,129.56,0.05283847]
[1725563984173,26.67,129.57,129.46,113.08195193]
[1725563984378,26.67,129.57,129.5,2.7604]
[1725563984576,26.67,129.57,129.46,113.08195193]
[1725563984774,26.67,129.55,129.47,4.1009]
[1725563984980,26.67,129.55,129.48,26.67]
[1725563985182,0.05572117,129.53,129.5,0.05331593]
[1725563985672,0.05572117,129.53,129.52,3.8607]
[1725563986768,0.05572117,129.53,129.5,26.72331593]
[1725563986769,3.8591,129.59,129.54,3.8603]
[1725563987176,3.8591,129.59,129.53,3.89460115]
[1725563987376,3.8591,129.59,129.54,1.3422]
[1725563987680,0.04923161,129.58,129.55,3.91751851]
[1725563988575,3.90843161,129.58,129.55,3.91751851]
[1725563988775,26.71923161,129.58,129.55,0.05751851]
[1725563989278,3.8595,129.57,129.55,0.05751851]
[1725563990274,30.57853161,129.58,129.55,0.05751851]
[1725563990674,26.71923161,129.58,129.55,0.05751851]
[1725563992386,3.8595,129.57,129.55,0.05751851]
[1725563993978,26.71923161,129.58,129.38,7.7301]
[1725563993979,65.34,129.56,129.38,7.7301]
[1725563994179,65.34,129.56,129.35,240.4636]
[1725563994180,26.67,129.48,129.41,2.7694]
[1725563994379,41.3799,129.56,129.32,26.67]
[1725563994380,12.0,129.47,129.32,26.67]
[1725563994588,26.67,129.44,129.36,1.3276]
[1725563994985,26.72143654,129.41,129.39,0.05108039]
[1725563995184,26.72788872,129.41,129.39,0.0560168]
[1725563995481,30.59218872,129.41,129.39,0.0560168]
[1725563995983,0.05788872,129.41,129.39,0.0560168]
[1725563996281,33.47788872,129.41,129.39,0.0560168]
[1725563996875,0.05788872,129.41,129.39,0.0560168]
[1725563997482,0.05788872,129.41,129.4,3.8645]
[1725563997783,0.05788872,129.41,129.39,0.0560168]
[1725563998382,0.05788872,129.41,129.4,3.8645]
[1725563999990,3.87618086,129.47,129.46,3.8627]
[1725564000290,7.7146,129.65,129.4,3.86071943]
[1725564000291,36.1262,129.52,129.41,34.7593]
[1725564000483,33.42,129.5,129.41,5.16213892]
[1725564000681,37.23704088,129.5,129.47,3.8622]